[Event "Early-Titled-Tuesday-Blitz-September-26-2023"]
[Site "Chess.com"]
[Date "2023.09.26"]
[Round "8"]
[White "Cambek64"]
[Black "vedantgoswami"]
[Result "1-0"]
[WhiteElo "2448"]
[BlackElo "2350"]
[TimeControl "180+1"]
[EndTime "9:28:54 PDT"]
[Termination "Cambek64 won on time"]

1. e4 {[%clk 0:02:45.9]} 1... Nc6 {[%clk 0:02:58.7]} 2. Nc3 {[%clk 0:02:45.2]}
2... d6 {[%clk 0:02:56.4]} 3. d4 {[%clk 0:02:43.6]} 3... e5 {[%clk 0:02:49.4]}
4. d5 {[%clk 0:02:44]} 4... Nce7 {[%clk 0:02:44.7]} 5. f4 {[%clk 0:02:40.9]}
5... exf4 {[%clk 0:02:43.3]} 6. Bxf4 {[%clk 0:02:41.4]} 6... Ng6 {[%clk
0:02:43.1]} 7. Bg3 {[%clk 0:02:41.3]} 7... Nf6 {[%clk 0:02:42]} 8. Nf3 {[%clk
0:02:41.9]} 8... Nh5 {[%clk 0:02:39.6]} 9. Bf2 {[%clk 0:02:41.1]} 9... Be7
{[%clk 0:02:36.5]} 10. Qd2 {[%clk 0:02:40.8]} 10... Bg4 {[%clk 0:02:32.5]} 11.
O-O-O {[%clk 0:02:41]} 11... Bxf3 {[%clk 0:02:30.8]} 12. gxf3 {[%clk 0:02:41]}
12... Bg5 {[%clk 0:02:31.4]} 13. Be3 {[%clk 0:02:41.6]} 13... Bxe3 {[%clk
0:02:28.4]} 14. Qxe3 {[%clk 0:02:41.9]} 14... Nhf4 {[%clk 0:02:28.9]} 15. h4
{[%clk 0:02:39.3]} 15... h5 {[%clk 0:02:27.8]} 16. Bh3 {[%clk 0:02:33.7]} 16...
Qf6 {[%clk 0:02:15.1]} 17. Bf5 {[%clk 0:02:32.8]} 17... a6 {[%clk 0:02:01.6]}
18. Rdg1 {[%clk 0:02:30]} 18... Qe5 {[%clk 0:01:54.2]} 19. Rg5 {[%clk 0:02:23]}
19... Qf6 {[%clk 0:01:21.7]} 20. Kb1 {[%clk 0:02:14.7]} 20... Kf8 {[%clk
0:01:09.5]} 21. Ne2 {[%clk 0:01:55.8]} 21... Nxe2 {[%clk 0:01:05.2]} 22. Bxg6
{[%clk 0:01:51.5]} 22... Nc3+ {[%clk 0:00:25]} 23. bxc3 {[%clk 0:01:49.4]} 23...
fxg6 {[%clk 0:00:24.4]} 24. Rhg1 {[%clk 0:01:47.2]} 24... Rh6 {[%clk 0:00:21.1]}
25. f4 {[%clk 0:01:47.4]} 25... Re8 {[%clk 0:00:19.8]} 26. e5 {[%clk 0:01:41]}
26... dxe5 {[%clk 0:00:18.3]} 27. fxe5 {[%clk 0:01:40.9]} 27... Qb6+ {[%clk
0:00:18]} 28. Qxb6 {[%clk 0:01:39.5]} 28... cxb6 {[%clk 0:00:18.7]} 29. d6
{[%clk 0:01:24.1]} 29... Kf7 {[%clk 0:00:16.8]} 30. Rf1+ {[%clk 0:01:23]} 30...
Ke6 {[%clk 0:00:16.5]} 31. c4 {[%clk 0:01:22.3]} 31... Rc8 {[%clk 0:00:16.2]}
32. Rf4 {[%clk 0:01:20.8]} 32... Rc5 {[%clk 0:00:15.8]} 33. Rf8 {[%clk
0:01:16.2]} 33... Rxc4 {[%clk 0:00:10.9]} 34. Re8+ {[%clk 0:01:14]} 34... Kd7
{[%clk 0:00:10.6]} 35. Re7+ {[%clk 0:01:14]} 35... Kd8 {[%clk 0:00:11]} 36. Rxg7
{[%clk 0:01:12.6]} 36... Rh8 {[%clk 0:00:10.3]} 37. Rxb7 {[%clk 0:01:09.9]}
37... Rf8 {[%clk 0:00:08.6]} 38. Rb8+ {[%clk 0:01:08.3]} 38... Rc8 {[%clk
0:00:09.1]} 39. Rxc8+ {[%clk 0:01:07.9]} 39... Kxc8 {[%clk 0:00:09.5]} 40. Rxg6
{[%clk 0:01:08.1]} 40... Kd7 {[%clk 0:00:06]} 41. Rg5 {[%clk 0:01:05.8]} 41...
Rf2 {[%clk 0:00:02.1]} 42. Rxh5 {[%clk 0:01:04.3]} 42... a5 {[%clk 0:00:02.8]}
43. a3 {[%clk 0:01:03.4]} 43... b5 {[%clk 0:00:02.4]} 44. Kb2 {[%clk 0:01:03.5]}
1-0

[Event "Early-Titled-Tuesday-Blitz-September-26-2023"]
[Site "Chess.com"]
[Date "2023.09.26"]
[Round "8"]
[White "LeoWin2012"]
[Black "amelia91"]
[Result "1-0"]
[WhiteElo "2327"]
[BlackElo "2136"]
[TimeControl "180+1"]
[EndTime "9:28:56 PDT"]
[Termination "LeoWin2012 won by checkmate"]

1. e4 {[%clk 0:03:00.9]} 1... c5 {[%clk 0:03:00.2]} 2. Ne2 {[%clk 0:03:00]} 2...
d6 {[%clk 0:02:59.4]} 3. g3 {[%clk 0:02:58.7]} 3... Nc6 {[%clk 0:02:58.8]} 4.
Bg2 {[%clk 0:02:58.6]} 4... g6 {[%clk 0:02:59.1]} 5. O-O {[%clk 0:02:58.4]} 5...
Bg7 {[%clk 0:02:59.4]} 6. f4 {[%clk 0:02:58.5]} 6... e6 {[%clk 0:02:59.5]} 7. c3
{[%clk 0:02:58.2]} 7... Nge7 {[%clk 0:02:59.5]} 8. d4 {[%clk 0:02:58.3]} 8...
cxd4 {[%clk 0:02:59.3]} 9. cxd4 {[%clk 0:02:58.5]} 9... d5 {[%clk 0:02:59.5]}
10. e5 {[%clk 0:02:58.1]} 10... O-O {[%clk 0:02:59.3]} 11. Nbc3 {[%clk 0:02:58]}
11... Nf5 {[%clk 0:02:55]} 12. g4 {[%clk 0:02:58]} 12... Nfe7 {[%clk 0:02:46.9]}
13. Be3 {[%clk 0:02:32.3]} 13... f6 {[%clk 0:02:45]} 14. Qe1 {[%clk 0:02:10.5]}
14... Bd7 {[%clk 0:02:40.6]} 15. Ng3 {[%clk 0:02:06.2]} 15... Qa5 {[%clk
0:02:31.8]} 16. a3 {[%clk 0:01:59.8]} 16... fxe5 {[%clk 0:02:31.3]} 17. fxe5
{[%clk 0:01:59]} 17... Rxf1+ {[%clk 0:02:24.4]} 18. Qxf1 {[%clk 0:01:57.1]}
18... Rf8 {[%clk 0:02:21]} 19. Qe2 {[%clk 0:01:57.1]} 19... Bxe5 {[%clk
0:02:04.2]} 20. dxe5 {[%clk 0:01:55.2]} 20... d4 {[%clk 0:02:04.4]} 21. Nce4
{[%clk 0:01:39.1]} 21... dxe3 {[%clk 0:02:01]} 22. Nf6+ {[%clk 0:01:39.2]} 22...
Rxf6 {[%clk 0:01:53.5]} 23. exf6 {[%clk 0:01:40.1]} 23... Nd5 {[%clk 0:01:53.7]}
24. Bxd5 {[%clk 0:01:36.5]} 24... Qxd5 {[%clk 0:01:54.4]} 25. Qxe3 {[%clk
0:01:36.1]} 25... Ne5 {[%clk 0:01:52.1]} 26. Rf1 {[%clk 0:01:12.9]} 26... Bc6
{[%clk 0:01:48.8]} 27. f7+ {[%clk 0:01:01.1]} 27... Nxf7 {[%clk 0:01:46.6]} 28.
Qf2 {[%clk 0:01:00.6]} 28... e5 {[%clk 0:01:43]} 29. Ne4 {[%clk 0:00:55.5]}
29... Qd4 {[%clk 0:01:29.4]} 30. Qxd4 {[%clk 0:00:35]} 30... exd4 {[%clk
0:01:30.1]} 31. Nf6+ {[%clk 0:00:34.6]} 31... Kg7 {[%clk 0:01:29.1]} 32. h4
{[%clk 0:00:29.6]} 32... Ne5 {[%clk 0:01:24.6]} 33. g5 {[%clk 0:00:15.4]} 33...
d3 {[%clk 0:01:23.4]} 34. Kf2 {[%clk 0:00:10.6]} 34... Ba4 {[%clk 0:01:08.8]}
35. Ke3 {[%clk 0:00:05.9]} 35... Bc2 {[%clk 0:01:00.5]} 36. Ne4 {[%clk 0:00:04]}
36... Nc4+ {[%clk 0:00:56.7]} 37. Kd4 {[%clk 0:00:02.4]} 37... Nxb2 {[%clk
0:00:53.7]} 38. Kc3 {[%clk 0:00:01.9]} 38... Na4+ {[%clk 0:00:53]} 39. Kd2
{[%clk 0:00:02.2]} 39... Nb6 {[%clk 0:00:52.3]} 40. Nc5 {[%clk 0:00:02]} 40...
Nc4+ {[%clk 0:00:51.8]} 41. Kc3 {[%clk 0:00:02.5]} 41... d2 {[%clk 0:00:49.2]}
42. Ne6+ {[%clk 0:00:03]} 42... Kg8 {[%clk 0:00:44.2]} 43. Rf8# {[%clk
0:00:03.8]} 1-0

[Event "Early-Titled-Tuesday-Blitz-September-26-2023"]
[Site "Chess.com"]
[Date "2023.09.26"]
[Round "8"]
[White "rikchessmx"]
[Black "Flopezin"]
[Result "1-0"]
[WhiteElo "2356"]
[BlackElo "2303"]
[TimeControl "180+1"]
[EndTime "9:28:56 PDT"]
[Termination "rikchessmx won by checkmate"]

1. e4 {[%clk 0:02:34.9]} 1... e5 {[%clk 0:02:59.6]} 2. Nf3 {[%clk 0:02:34.1]}
2... Nc6 {[%clk 0:02:59.6]} 3. Bb5 {[%clk 0:02:34.1]} 3... a6 {[%clk 0:02:59.7]}
4. Ba4 {[%clk 0:02:34.2]} 4... Nf6 {[%clk 0:02:59.5]} 5. O-O {[%clk 0:02:34]}
5... Bc5 {[%clk 0:02:59.6]} 6. c3 {[%clk 0:02:33.6]} 6... b5 {[%clk 0:02:59.7]}
7. Bc2 {[%clk 0:02:32.6]} 7... d6 {[%clk 0:02:59.8]} 8. h3 {[%clk 0:02:31.2]}
8... O-O {[%clk 0:02:45.8]} 9. d4 {[%clk 0:02:29.9]} 9... Ba7 {[%clk 0:02:42.5]}
10. d5 {[%clk 0:02:29.2]} 10... Ne7 {[%clk 0:02:41]} 11. a4 {[%clk 0:02:29.8]}
11... Bb7 {[%clk 0:02:37.9]} 12. Qe2 {[%clk 0:02:28.6]} 12... c6 {[%clk
0:02:36.2]} 13. dxc6 {[%clk 0:02:24.9]} 13... Bxc6 {[%clk 0:02:34.5]} 14. Na3
{[%clk 0:02:21.9]} 14... Ng6 {[%clk 0:01:59.6]} 15. Rd1 {[%clk 0:02:17.2]} 15...
Qe7 {[%clk 0:01:50.3]} 16. Be3 {[%clk 0:02:11.6]} 16... Bxe3 {[%clk 0:01:46.9]}
17. Qxe3 {[%clk 0:02:11.2]} 17... d5 {[%clk 0:01:30.9]} 18. exd5 {[%clk
0:02:06]} 18... Nxd5 {[%clk 0:01:31.8]} 19. Qg5 {[%clk 0:01:44.8]} 19... f6
{[%clk 0:01:17.9]} 20. Qf5 {[%clk 0:01:37]} 20... Ndf4 {[%clk 0:01:14.6]} 21.
Ne1 {[%clk 0:01:10.5]} 21... Bxg2 {[%clk 0:00:51.8]} 22. Nxg2 {[%clk 0:01:03.2]}
22... Nxg2 {[%clk 0:00:50.3]} 23. Rd7 {[%clk 0:00:53.9]} 23... Qc5 {[%clk
0:00:37.3]} 24. Qe6+ {[%clk 0:00:48.7]} 24... Kh8 {[%clk 0:00:36.6]} 25. Kxg2
{[%clk 0:00:49]} 25... Nf4+ {[%clk 0:00:36.7]} 26. Kf1 {[%clk 0:00:46.4]} 26...
Nxe6 {[%clk 0:00:37.3]} 27. axb5 {[%clk 0:00:44]} 27... axb5 {[%clk 0:00:36.6]}
28. Rad1 {[%clk 0:00:42.6]} 28... Nf4 {[%clk 0:00:31]} 29. Bf5 {[%clk
0:00:34.6]} 29... e4 {[%clk 0:00:28.8]} 30. Bxe4 {[%clk 0:00:30.4]} 30... Nxh3
{[%clk 0:00:28.2]} 31. R1d2 {[%clk 0:00:28]} 31... Qg5 {[%clk 0:00:21.7]} 32.
Bg2 {[%clk 0:00:23.7]} 32... Nf4 {[%clk 0:00:20.5]} 33. Bf3 {[%clk 0:00:23.5]}
33... Qh4 {[%clk 0:00:20.1]} 34. Bxa8 {[%clk 0:00:13.3]} 34... Qh3+ {[%clk
0:00:18.5]} 35. Kg1 {[%clk 0:00:09.2]} 35... Rxa8 {[%clk 0:00:17.6]} 36. Rd8+
{[%clk 0:00:08.3]} 36... Rxd8 {[%clk 0:00:15.2]} 37. Rxd8# {[%clk 0:00:09.2]}
1-0

[Event "Early-Titled-Tuesday-Blitz-September-26-2023"]
[Site "Chess.com"]
[Date "2023.09.26"]
[Round "8"]
[White "Vesper2018"]
[Black "LionTheLeon_06"]
[Result "0-1"]
[WhiteElo "2579"]
[BlackElo "2805"]
[TimeControl "180+1"]
[EndTime "9:29:04 PDT"]
[Termination "LionTheLeon_06 won by resignation"]

1. e4 {[%clk 0:03:00.9]} 1... c6 {[%clk 0:02:59.6]} 2. d4 {[%clk 0:03:00.3]}
2... d5 {[%clk 0:03:00.5]} 3. e5 {[%clk 0:03:00.7]} 3... c5 {[%clk 0:03:00.6]}
4. c3 {[%clk 0:02:57.4]} 4... cxd4 {[%clk 0:03:01.5]} 5. cxd4 {[%clk 0:02:57.3]}
5... Nc6 {[%clk 0:03:02.4]} 6. Be2 {[%clk 0:02:56.3]} 6... Bf5 {[%clk
0:03:02.3]} 7. Nf3 {[%clk 0:02:53.3]} 7... e6 {[%clk 0:03:02.8]} 8. O-O {[%clk
0:02:52.7]} 8... Rc8 {[%clk 0:03:02.7]} 9. Nc3 {[%clk 0:02:52.3]} 9... Bb4
{[%clk 0:03:01.5]} 10. Bd2 {[%clk 0:02:45.5]} 10... Bxc3 {[%clk 0:02:52.1]} 11.
Bxc3 {[%clk 0:02:43]} 11... h6 {[%clk 0:02:52.8]} 12. Rc1 {[%clk 0:02:36.9]}
12... Nge7 {[%clk 0:02:53.1]} 13. b4 {[%clk 0:02:36.8]} 13... a6 {[%clk
0:02:35.2]} 14. a4 {[%clk 0:02:35.7]} 14... O-O {[%clk 0:02:35.5]} 15. Qd2
{[%clk 0:02:25.9]} 15... Qd7 {[%clk 0:02:20.9]} 16. b5 {[%clk 0:02:21.8]} 16...
axb5 {[%clk 0:02:20.4]} 17. axb5 {[%clk 0:02:20.1]} 17... Na7 {[%clk 0:02:14]}
18. Bb4 {[%clk 0:02:17.2]} 18... Rxc1 {[%clk 0:02:09.8]} 19. Rxc1 {[%clk
0:02:16.3]} 19... Rc8 {[%clk 0:02:10.1]} 20. h3 {[%clk 0:01:54.7]} 20... Be4
{[%clk 0:01:52.3]} 21. Ra1 {[%clk 0:01:43.7]} 21... b6 {[%clk 0:01:44.5]} 22.
Qa2 {[%clk 0:01:34.4]} 22... Rc7 {[%clk 0:01:40.9]} 23. Bd6 {[%clk 0:01:31]}
23... Rb7 {[%clk 0:01:41.3]} 24. Qb3 {[%clk 0:01:05.9]} 24... Nf5 {[%clk
0:01:37.6]} 25. Qb4 {[%clk 0:00:55.7]} 25... Nxd6 {[%clk 0:01:20.9]} 26. exd6
{[%clk 0:00:44.5]} 26... Bxf3 {[%clk 0:01:20.8]} 27. Bxf3 {[%clk 0:00:44.7]}
27... Nc8 {[%clk 0:01:10.1]} 28. Ra8 {[%clk 0:00:43.3]} 28... Kh7 {[%clk
0:01:09.7]} 29. Bd1 {[%clk 0:00:23.6]} 29... Nxd6 {[%clk 0:01:07.3]} 30. Bc2+
{[%clk 0:00:23.8]} 30... f5 {[%clk 0:00:49.3]} 31. Bd3 {[%clk 0:00:23.8]} 31...
Rc7 {[%clk 0:00:48.1]} 32. Rb8 {[%clk 0:00:19.5]} 32... Rc1+ {[%clk 0:00:42.7]}
33. Kh2 {[%clk 0:00:19.5]} 33... Qc7 {[%clk 0:00:42.7]} 34. Rf8 {[%clk
0:00:17.4]} 34... Ne4+ {[%clk 0:00:33.1]} 35. g3 {[%clk 0:00:16.3]} 35... Nxf2
{[%clk 0:00:33.3]} 36. Be2 {[%clk 0:00:05]} 36... Rc2 {[%clk 0:00:32.1]} 37. Re8
{[%clk 0:00:02.5]} 37... Rxe2 {[%clk 0:00:30.7]} 0-1

[Event "Early-Titled-Tuesday-Blitz-September-26-2023"]
[Site "Chess.com"]
[Date "2023.09.26"]
[Round "8"]
[White "RandomNoob04"]
[Black "AlexPapasimakopoulos"]
[Result "1-0"]
[WhiteElo "2625"]
[BlackElo "2730"]
[TimeControl "180+1"]
[EndTime "9:29:06 PDT"]
[Termination "RandomNoob04 won by resignation"]

1. e4 {[%clk 0:03:00.9]} 1... e6 {[%clk 0:02:50.9]} 2. d4 {[%clk 0:03:00.6]}
2... d5 {[%clk 0:02:50.6]} 3. exd5 {[%clk 0:03:01.5]} 3... exd5 {[%clk
0:02:50.2]} 4. Nf3 {[%clk 0:03:02.4]} 4... Bg4 {[%clk 0:02:50]} 5. h3 {[%clk
0:03:02.3]} 5... Bh5 {[%clk 0:02:49.7]} 6. Qe2+ {[%clk 0:03:02.3]} 6... Qe7
{[%clk 0:02:47.1]} 7. Be3 {[%clk 0:03:02.3]} 7... Nc6 {[%clk 0:02:43.8]} 8. Nc3
{[%clk 0:02:48.7]} 8... O-O-O {[%clk 0:02:44.1]} 9. O-O-O {[%clk 0:02:48.5]}
9... f6 {[%clk 0:02:44.3]} 10. g4 {[%clk 0:02:45.3]} 10... Bf7 {[%clk 0:02:44]}
11. Bg2 {[%clk 0:02:45.7]} 11... Qd7 {[%clk 0:02:44]} 12. Rhe1 {[%clk
0:02:43.8]} 12... Bb4 {[%clk 0:02:41.8]} 13. Bd2 {[%clk 0:02:19.4]} 13... Nge7
{[%clk 0:02:37.3]} 14. Na4 {[%clk 0:02:14.9]} 14... Bd6 {[%clk 0:02:33.2]} 15.
Qb5 {[%clk 0:01:53.1]} 15... a6 {[%clk 0:02:30.4]} 16. Qb3 {[%clk 0:01:53.2]}
16... g5 {[%clk 0:02:21.6]} 17. Nc5 {[%clk 0:01:46]} 17... Bxc5 {[%clk
0:02:21.8]} 18. dxc5 {[%clk 0:01:46.9]} 18... d4 {[%clk 0:02:20.5]} 19. Qxf7
{[%clk 0:01:46.6]} 19... Kb8 {[%clk 0:02:15]} 20. Qe6 {[%clk 0:01:42.3]} 20...
Qe8 {[%clk 0:02:13.7]} 21. Qxf6 {[%clk 0:01:41]} 21... h6 {[%clk 0:02:13.7]} 22.
Ne5 {[%clk 0:01:37.8]} 22... Qg8 {[%clk 0:02:13]} 23. Bxc6 {[%clk 0:01:31.5]}
23... Qxa2 {[%clk 0:02:12.3]} 24. Bb4 {[%clk 0:01:24.3]} 24... Nxc6 {[%clk
0:02:06.3]} 25. Nxc6+ {[%clk 0:01:24.5]} 25... bxc6 {[%clk 0:02:07.2]} 26. Rxd4
{[%clk 0:01:21.5]} 26... Rde8 {[%clk 0:02:02.4]} 27. Rxe8+ {[%clk 0:01:19.8]}
27... Rxe8 {[%clk 0:02:02]} 28. Rd8+ {[%clk 0:01:20.5]} 28... Rxd8 {[%clk
0:02:01.4]} 29. Qxd8+ {[%clk 0:01:21.4]} 29... Kb7 {[%clk 0:02:02.3]} 30. Bc3
{[%clk 0:01:15.2]} 30... Qa1+ {[%clk 0:02:02.1]} 31. Kd2 {[%clk 0:01:15.5]}
31... Qf1 {[%clk 0:02:01.2]} 32. Qd4 {[%clk 0:01:13.2]} 32... Qxh3 {[%clk
0:02:00.5]} 33. Ba5 {[%clk 0:00:59.4]} 33... Qf3 {[%clk 0:01:52.2]} 34. b3
{[%clk 0:00:41.4]} 34... Kc8 {[%clk 0:01:47.6]} 35. Kc1 {[%clk 0:00:39.9]} 35...
Kb7 {[%clk 0:01:47.1]} 36. Kb2 {[%clk 0:00:40.3]} 36... Qf7 {[%clk 0:01:36.4]}
37. Qe5 {[%clk 0:00:38.5]} 37... Qd7 {[%clk 0:01:35.5]} 38. f3 {[%clk
0:00:27.7]} 38... Qf7 {[%clk 0:01:34.8]} 39. b4 {[%clk 0:00:16.3]} 39... Kc8
{[%clk 0:01:20.2]} 40. Qxc7+ {[%clk 0:00:10]} 40... Qxc7 {[%clk 0:01:19.5]} 41.
Bxc7 {[%clk 0:00:10.9]} 41... Kxc7 {[%clk 0:01:20.4]} 42. Kc3 {[%clk 0:00:11.6]}
42... Kd7 {[%clk 0:01:20.8]} 43. Kd4 {[%clk 0:00:12.3]} 43... Ke6 {[%clk
0:01:21.2]} 44. Ke4 {[%clk 0:00:12.8]} 44... Kf6 {[%clk 0:01:21.5]} 45. c4
{[%clk 0:00:12.4]} 45... Ke6 {[%clk 0:01:22]} 46. Kd4 {[%clk 0:00:13]} 46... Kf6
{[%clk 0:01:21.4]} 47. Kc3 {[%clk 0:00:05.8]} 47... Ke5 {[%clk 0:01:16.5]} 48.
b5 {[%clk 0:00:04.3]} 48... a5 {[%clk 0:00:48.6]} 49. b6 {[%clk 0:00:04.5]}
49... a4 {[%clk 0:00:47.8]} 50. b7 {[%clk 0:00:05]} 50... a3 {[%clk 0:00:48.2]}
51. b8=Q+ {[%clk 0:00:05.9]} 1-0

[Event "Early-Titled-Tuesday-Blitz-September-26-2023"]
[Site "Chess.com"]
[Date "2023.09.26"]
[Round "8"]
[White "Barbix1"]
[Black "Chaos_Magic"]
[Result "1-0"]
[WhiteElo "2349"]
[BlackElo "2407"]
[TimeControl "180+1"]
[EndTime "9:29:08 PDT"]
[Termination "Barbix1 won on time"]

1. d4 {[%clk 0:03:00.9]} 1... Nf6 {[%clk 0:02:54.7]} 2. Nf3 {[%clk 0:03:00.9]}
2... c5 {[%clk 0:02:54.4]} 3. d5 {[%clk 0:02:51.6]} 3... b5 {[%clk 0:02:54.2]}
4. g3 {[%clk 0:02:48.6]} 4... Bb7 {[%clk 0:02:53.5]} 5. c4 {[%clk 0:02:34.3]}
5... bxc4 {[%clk 0:02:45.9]} 6. Nc3 {[%clk 0:02:33.8]} 6... d6 {[%clk
0:02:45.4]} 7. Bg2 {[%clk 0:02:32.3]} 7... g6 {[%clk 0:02:44.3]} 8. O-O {[%clk
0:02:32]} 8... Bg7 {[%clk 0:02:44.5]} 9. Nd2 {[%clk 0:02:28.6]} 9... h5 {[%clk
0:02:37.1]} 10. Nxc4 {[%clk 0:02:21]} 10... h4 {[%clk 0:02:36.2]} 11. a4 {[%clk
0:02:17.8]} 11... Nbd7 {[%clk 0:02:33.2]} 12. e4 {[%clk 0:02:08.8]} 12... Nb6
{[%clk 0:02:16.4]} 13. Ne3 {[%clk 0:01:47.6]} 13... a5 {[%clk 0:01:49.6]} 14.
Nb5 {[%clk 0:01:43.8]} 14... Nfd7 {[%clk 0:01:44]} 15. Re1 {[%clk 0:01:41.4]}
15... Ba6 {[%clk 0:01:31.5]} 16. Qc2 {[%clk 0:01:37.8]} 16... Qc8 {[%clk
0:01:16.8]} 17. Bd2 {[%clk 0:01:34.6]} 17... hxg3 {[%clk 0:01:13.3]} 18. hxg3
{[%clk 0:01:32.4]} 18... Bxb5 {[%clk 0:01:09]} 19. axb5 {[%clk 0:01:32.2]} 19...
a4 {[%clk 0:01:09.5]} 20. Bc3 {[%clk 0:01:28.6]} 20... Ne5 {[%clk 0:01:05.1]}
21. f4 {[%clk 0:01:22.4]} 21... c4 {[%clk 0:00:37.3]} 22. fxe5 {[%clk
0:01:20.5]} 22... dxe5 {[%clk 0:00:37.7]} 23. Qf2 {[%clk 0:01:10]} 23... Qc5
{[%clk 0:00:18.9]} 24. Ng4 {[%clk 0:01:05.5]} 24... Qxb5 {[%clk 0:00:14.1]} 25.
Nxe5 {[%clk 0:01:00.6]} 25... O-O {[%clk 0:00:11.9]} 26. Nc6 {[%clk 0:00:52.7]}
26... Rfe8 {[%clk 0:00:09.2]} 27. Bxg7 {[%clk 0:00:51]} 27... Kxg7 {[%clk
0:00:09.6]} 28. Qd4+ {[%clk 0:00:49.9]} 28... f6 {[%clk 0:00:08.9]} 29. e5
{[%clk 0:00:48.5]} 29... Rad8 {[%clk 0:00:04.3]} 30. exf6+ {[%clk 0:00:47.5]}
30... exf6 {[%clk 0:00:04.7]} 31. Rxe8 {[%clk 0:00:38.2]} 31... Rxe8 {[%clk
0:00:05.6]} 32. Rf1 {[%clk 0:00:38.5]} 32... Rf8 {[%clk 0:00:04.1]} 33. Qe4
{[%clk 0:00:23]} 33... Rf7 {[%clk 0:00:03.4]} 34. Nd4 {[%clk 0:00:18.8]} 34...
Qxb2 {[%clk 0:00:01.9]} 35. Ne6+ {[%clk 0:00:18.6]} 35... Kh7 {[%clk 0:00:02.3]}
36. Qh4+ {[%clk 0:00:18.6]} 36... Kg8 {[%clk 0:00:02]} 37. Qh6 {[%clk
0:00:18.5]} 1-0

[Event "Early-Titled-Tuesday-Blitz-September-26-2023"]
[Site "Chess.com"]
[Date "2023.09.26"]
[Round "8"]
[White "Saif_Malek04"]
[Black "esrosenberg"]
[Result "0-1"]
[WhiteElo "2591"]
[BlackElo "2386"]
[TimeControl "180+1"]
[EndTime "9:29:11 PDT"]
[Termination "esrosenberg won by checkmate"]

1. e4 {[%clk 0:02:57.2]} 1... e5 {[%clk 0:02:59.7]} 2. Nf3 {[%clk 0:02:57.6]}
2... Nc6 {[%clk 0:03:00.3]} 3. d4 {[%clk 0:02:58.2]} 3... exd4 {[%clk
0:03:00.2]} 4. Bc4 {[%clk 0:02:58.9]} 4... Bc5 {[%clk 0:02:57.9]} 5. c3 {[%clk
0:02:58.9]} 5... Nf6 {[%clk 0:02:56.6]} 6. cxd4 {[%clk 0:02:59.6]} 6... Bb4+
{[%clk 0:02:56]} 7. Bd2 {[%clk 0:03:00.3]} 7... Nxe4 {[%clk 0:02:55.7]} 8. O-O
{[%clk 0:02:55.1]} 8... Nxd2 {[%clk 0:02:50]} 9. Nbxd2 {[%clk 0:02:55.1]} 9...
O-O {[%clk 0:02:50.1]} 10. a3 {[%clk 0:02:54.6]} 10... Bxd2 {[%clk 0:02:41.3]}
11. Qxd2 {[%clk 0:02:53.4]} 11... d5 {[%clk 0:02:42]} 12. Bd3 {[%clk 0:02:53.8]}
12... f6 {[%clk 0:02:40.8]} 13. Rfe1 {[%clk 0:02:51.9]} 13... Bg4 {[%clk
0:02:39.6]} 14. Qf4 {[%clk 0:02:50.7]} 14... Bxf3 {[%clk 0:02:39.5]} 15. gxf3
{[%clk 0:02:51.1]} 15... Re8 {[%clk 0:02:27.2]} 16. Kh1 {[%clk 0:02:48.5]} 16...
Qd7 {[%clk 0:02:14.9]} 17. Rg1 {[%clk 0:02:45.2]} 17... Kh8 {[%clk 0:02:09.1]}
18. Qh4 {[%clk 0:02:36.1]} 18... f5 {[%clk 0:02:01.3]} 19. Rg5 {[%clk 0:02:32]}
19... Rf8 {[%clk 0:01:41.9]} 20. Rag1 {[%clk 0:02:30.3]} 20... Rf7 {[%clk
0:01:41.8]} 21. Rh5 {[%clk 0:01:54.6]} 21... h6 {[%clk 0:01:11.8]} 22. Qf4
{[%clk 0:01:24.2]} 22... Qd6 {[%clk 0:00:51.2]} 23. Qh4 {[%clk 0:00:56.9]} 23...
Raf8 {[%clk 0:00:43.9]} 24. Rhg5 {[%clk 0:00:56.6]} 24... Nxd4 {[%clk
0:00:37.3]} 25. Rg6 {[%clk 0:00:42.2]} 25... Nxf3 {[%clk 0:00:31.8]} 26. Qh5
{[%clk 0:00:17.8]} 26... Qf4 {[%clk 0:00:27.7]} 27. R1g3 {[%clk 0:00:15.5]}
27... Qc1+ {[%clk 0:00:21.4]} 28. Kg2 {[%clk 0:00:14.3]} 28... Ne1+ {[%clk
0:00:20.6]} 29. Kh3 {[%clk 0:00:13.7]} 29... Nxd3 {[%clk 0:00:18.9]} 30. Kg2
{[%clk 0:00:01.3]} 30... Nf4+ {[%clk 0:00:17.5]} 31. Kf3 {[%clk 0:00:01.9]}
31... Nxh5 {[%clk 0:00:17.7]} 32. Rh3 {[%clk 0:00:02.2]} 32... Nf4 {[%clk
0:00:15.6]} 33. Rhxh6+ {[%clk 0:00:02]} 33... gxh6 {[%clk 0:00:15.6]} 34. Rxh6+
{[%clk 0:00:02.9]} 34... Kg7 {[%clk 0:00:16.2]} 35. Rh4 {[%clk 0:00:03]} 35...
Ng6 {[%clk 0:00:15.7]} 36. Rg4 {[%clk 0:00:03.4]} 36... fxg4+ {[%clk 0:00:15.9]}
37. Kg3 {[%clk 0:00:04.3]} 37... Rxf2 {[%clk 0:00:15.2]} 38. h4 {[%clk
0:00:05.2]} 38... Qf4# {[%clk 0:00:14.6]} 0-1